bitfinex/quotes_ETHUSD_20241101
["timestamp","ask_amount","ask_price","bid_price","bid_amount"]
[1730476392839,4.00208,2498.7,2497.6,4.00368]
[1730476392840,4.00277,2498.3,2497.6,4.00368]
[1730476393038,0.920269,2498.7,2496.3,6.37309718]
[1730476393039,1.1574,2498.0,2496.3,6.37309718]
[1730476393288,4.004,2497.5,2495.8,6.37309718]
[1730476393434,4.004,2497.5,2496.9,4.00487]
[1730476393638,1.70486834,2498.0,2497.0,0.08008964]
[1730476393834,5.1607,2498.0,2497.3,4.00421]
[1730476394039,3.0,2498.6,2496.3,4.00592]
[1730476394040,4.00289,2498.2,2497.6,4.00383]
[1730476394239,1.1871,2498.3,2497.8,4.0035]
[1730476394433,1.1871,2498.3,2497.6,4.0037]
[1730476394434,5.18985,2498.3,2497.6,4.0037]
[1730476394683,5.18985,2498.3,2496.6,4.0053]
[1730476394684,1.1476,2497.2,2496.6,4.0053]
[1730476394889,1.1476,2497.2,2495.2,4.00758]
[1730476395139,4.00505,2496.9,2496.1,4.0062]
[1730476395421,1.1476,2497.2,2496.6,4.00532]
[1730476395578,4.00466,2497.1,2496.6,4.00532]
[1730476395781,4.00522,2496.8,2496.0,4.00627]
[1730476395994,4.00497,2496.9,2496.2,4.00606]
[1730476396194,1.1476,2497.2,2496.0,4.00632]
[1730476396394,4.00529,2496.7,2496.1,4.00621]
[1730476396715,4.00529,2496.7,2496.1,4.00615]
[1730476397018,4.00498,2496.9,2495.1,6.37309718]
[1730476397019,4.00504,2496.9,2496.2,0.08011172]
[1730476397174,4.00471,2497.1,2495.6,0.08010723]
[1730476397367,1.1476,2497.2,2495.7,3.08010725]
[1730476397569,4.00373,2497.7,2495.7,3.08010725]
[1730476397570,1.1516,2497.7,2497.1,4.00451]
[1730476397802,5.15528,2497.7,2497.1,4.00451]
[1730476397986,1.1516,2497.7,2497.1,4.00455]
[1730476398190,1.1516,2497.7,2497.3,4.00421]
[1730476398925,1.1516,2497.7,2496.6,4.00538]
[1730476398926,4.00411,2497.5,2496.5,4.0056]
[1730476399065,4.00517,2496.8,2495.6,8.0141]
[1730476399271,1.1595,2497.3,2495.7,0.08010478]
[1730476399471,4.00448,2497.2,2496.6,4.0054]
[1730476399777,4.00448,2497.2,2496.6,8.01075]
[1730476400115,1.1595,2497.3,2497.1,4.00455]
[1730476400309,1.1595,2497.3,2496.9,4.00487]
[1730476400611,8.00911,2497.2,2496.5,4.0055]
[1730476400911,4.00448,2497.2,2496.7,4.00527]
[1730476401221,1.1595,2497.3,2496.8,4.00507]
[1730476401428,1.1595,2497.3,2496.9,4.00493]
[1730476401708,1.1595,2497.3,2496.8,4.00504]
[1730476402110,4.00505,2496.9,2496.2,4.00601]
[1730476402413,5.16383,2497.3,2496.7,4.00514]
[1730476402617,9.16824,2497.3,2496.7,4.00514]
[1730476402787,1.1595,2497.3,2496.7,4.00514]
[1730476402976,1.1595,2497.3,2496.3,7.0058]
[1730476402977,1.1595,2497.3,2496.5,4.0056]
[1730476403320,1.1413,2497.8,2497.2,4.00439]
[1730476403519,1.1413,2497.8,2497.6,4.00374]
[1730476403872,1.1413,2497.8,2497.3,4.00425]
[1730476404072,1.1413,2497.8,2497.0,4.00474]
[1730476404292,1.1413,2497.8,2496.8,4.00502]
[1730476404573,4.00424,2497.4,2496.3,3.0]
[1730476404802,1.79991986,2497.8,2496.9,4.00482]
[1730476404803,4.00393,2497.6,2496.9,4.00482]
[1730476405014,1.1038,2497.5,2496.4,4.00566]
[1730476405198,5.1091,2496.7,2496.1,4.00624]
[1730476405509,5.1091,2496.7,2496.2,4.00595]
[1730476405721,1.1038,2496.7,2496.3,4.00588]
[1730476405885,5.1091,2496.7,2496.1,8.01235]
[1730476406087,5.1091,2496.7,2495.5,0.41174441]
[1730476406088,1.1038,2496.7,2495.5,0.41174441]
[1730476406276,8.05080921,2497.7,2496.7,4.00527]
[1730476406277,1.0934,2497.1,2496.7,4.00527]
[1730476406483,1.0934,2497.1,2496.9,4.00493]
[1730476406975,1.0995,2497.7,2497.0,0.55]
[1730476407177,1.0995,2497.7,2497.6,4.00384]
[1730476407378,1.0995,2497.7,2497.4,4.00415]
[1730476407580,1.0995,2497.7,2497.5,4.00387]
[1730476407808,4.00384,2497.6,2497.1,4.00453]
[1730476408029,1.0995,2497.7,2497.4,4.00408]
[1730476408179,1.1813,2498.1,2497.5,0.08007773]
[1730476408378,4.00328,2498.0,2497.5,4.00396]
[1730476408578,1.1813,2498.1,2497.2,4.00441]
[1730476408579,4.00378,2497.7,2497.2,4.00441]
[1730476408880,4.00346,2497.9,2497.3,4.0043]
[1730476409107,4.00345,2497.9,2497.3,4.0043]
[1730476409304,4.00345,2497.9,2497.4,4.00414]
[1730476409510,4.00345,2497.9,2497.4,8.00822]
[1730476409815,4.00389,2497.6,2496.9,4.00496]
[1730476410022,4.00409,2497.5,2497.0,4.0048]
[1730476410535,4.00339,2497.9,2496.2,5.05080921]
[1730476410536,4.00344,2497.9,2497.3,4.0043]
[1730476410743,4.00344,2497.9,2496.6,4.00544]
[1730476410744,4.00344,2497.9,2497.4,0.08007674]
[1730476410906,4.00395,2497.6,2496.9,4.00483]
[1730476411099,4.0041,2497.5,2496.9,4.00483]
[1730476411334,4.00401,2497.5,2497.0,4.0047]
[1730476411518,4.00342,2497.9,2497.3,4.0043]
[1730476411720,4.00355,2497.8,2497.1,4.00453]
[1730476411905,4.00354,2497.8,2497.2,4.00441]
[1730476412106,4.00379,2497.7,2497.2,4.00441]
[1730476412532,1.1813,2498.1,2496.7,4.00527]
[1730476412533,1.1813,2498.1,2497.3,0.55]
[1730476412748,1.1813,2498.1,2497.4,4.00416]
[1730476413038,4.00344,2497.9,2497.4,4.00416]
[1730476413402,4.00344,2497.9,2497.4,8.00823]
[1730476413622,5.18434,2498.1,2497.5,4.00398]
[1730476414011,4.00321,2498.0,2497.5,4.00398]
[1730476414219,1.1813,2498.1,2497.0,4.00479]
[1730476414425,1.1813,2498.1,2497.8,8.00685]
[1730476414597,1.1813,2498.1,2497.8,4.00338]
[1730476414796,1.1813,2498.1,2497.5,4.00385]
[1730476415135,4.00415,2497.5,2497.0,4.00479]
[1730476415348,4.0038,2497.7,2497.1,0.08008375]
[1730476415495,1.1813,2498.1,2496.8,4.00506]
[1730476415692,1.1813,2498.1,2496.2,5.05080921]
[1730476415693,4.00408,2497.5,2497.0,4.00479]
[1730476415898,4.00284,2498.3,2497.0,4.00479]
[1730476415899,4.00287,2498.3,2497.7,4.0036]
[1730476416127,4.0028,2498.3,2496.6,5.05080921]
[1730476416331,4.0028,2498.3,2497.8,4.00342]
[1730476416497,1.1168,2498.5,2498.2,4.0028]
[1730476416695,4.00258,2498.4,2497.9,4.00327]
[1730476416929,1.1168,2498.5,2498.1,4.00296]
[1730476417133,5.11922,2498.5,2498.1,4.00296]
[1730476417493,5.11922,2498.5,2497.7,4.00358]
[1730476417494,4.00256,2498.4,2497.7,4.00358]
[1730476417713,4.00289,2498.2,2497.3,0.55]
[1730476417921,4.00269,2498.4,2497.8,4.00341]
[1730476418118,4.00269,2498.4,2497.4,0.08006487]
[1730476418119,1.1168,2498.5,2497.9,0.08006321]
[1730476418354,1.1168,2498.5,2498.1,4.00293]
[1730476418556,4.00148,2499.1,2497.5,0.55]
[1730476418557,1.1527,2499.1,2498.7,4.00207]
[1730476418758,1.1527,2499.5,2498.8,0.08003822]
[1730476419057,1.1527,2499.9,2499.6,4.00053]
[1730476419276,1.1527,2499.9,2499.7,4.00047]
[1730476419479,1.1527,2499.9,2499.6,4.00063]
[1730476419753,1.1527,2499.9,2499.8,4.00032]
[1730476419957,5.06144861,2501.3,2500.2,3.99956]
[1730476419958,1.1527,2501.2,2500.2,3.99956]
[1730476420164,3.99944,2500.4,2499.8,4.0002]
[1730476420655,3.99944,2500.4,2499.4,3.0]
[1730476420656,3.99953,2500.3,2499.7,4.00042]
[1730476420862,1.1556,2500.2,2499.7,4.00042]
[1730476421387,3.99985,2500.1,2499.5,8.0014]
[1730476421521,1.1556,2500.2,2498.9,4.00166]
[1730476421522,4.00005,2500.0,2498.9,4.00166]
[1730476421723,1.1556,2500.2,2499.1,4.00132]
[1730476421724,4.00049,2499.7,2499.1,4.00132]
[1730476421953,4.00041,2499.8,2499.1,4.00132]
[1730476422121,1.1168,2499.5,2499.0,4.00157]
[1730476422321,1.1168,2499.5,2499.2,4.00122]
[1730476422521,1.0846,2499.9,2499.3,0.08002213]
[1730476422829,1.0846,2499.9,2499.4,4.00086]
[1730476423025,5.08491,2499.9,2499.3,4.00107]
[1730476423228,1.0846,2499.9,2499.2,4.00118]
[1730476423454,4.00047,2499.8,2499.2,4.00118]
[1730476423766,4.00092,2499.5,2499.0,4.00149]
[1730476423965,4.00057,2499.7,2499.1,4.00142]
[1730476423966,8.00121,2499.7,2499.1,4.00142]
[1730476424273,1.0846,2499.9,2499.2,0.08002119]
[1730476424424,3.99925,2500.5,2498.7,9.05284921]
[1730476424425,1.0846,2500.3,2499.9,4.00007]
[1730476424625,1.0846,2500.3,2500.0,3.99996]
[1730476424830,1.0846,2500.3,2499.9,4.00002]
[1730476425036,1.1588,2500.7,2499.9,4.00002]
[1730476425255,3.99931,2500.5,2500.0,3.99997]
[1730476425589,3.9996,2500.3,2499.7,4.00036]
[1730476426086,3.9996,2500.3,2499.3,4.00106]
[1730476426087,4.00012,2500.0,2499.4,4.55084]
[1730476426391,4.0005,2499.7,2499.1,4.00132]
[1730476426590,1.1269,2499.9,2499.3,4.00103]
[1730476426591,5.12715,2499.9,2499.3,4.00103]
[1730476426745,5.12715,2499.9,2498.6,4.00218]
[1730476426746,1.1269,2499.9,2499.6,4.00053]
[1730476427085,1.1269,2499.9,2498.7,9.05288921]
[1730476427086,1.1269,2499.9,2498.8,0.08000904]
[1730476427293,3.0,2500.8,2499.8,4.00023]
[1730476427294,5.15476,2500.4,2499.8,4.00023]
[1730476427459,5.15476,2500.4,2499.9,4.00014]
[1730476427656,5.15476,2500.4,2499.8,4.00023]
[1730476427657,5.15475,2500.4,2499.8,4.00023]
[1730476427860,5.15475,2500.4,2499.9,4.00013]
[1730476428057,1.1553,2500.4,2500.0,4.0799521]
[1730476428260,3.99888,2500.7,2500.2,3.99967]
[1730476428443,3.99882,2500.8,2500.1,0.0799905]
[1730476428679,3.99939,2500.4,2499.9,0.55]
[1730476428858,3.99888,2500.7,2500.0,4.0]
[1730476429074,3.99882,2500.8,2500.1,3.99984]
[1730476429294,1.1964,2500.9,2500.3,4.54952]
[1730476429463,3.99824,2501.1,2500.5,3.99904]
[1730476429659,3.99824,2501.1,2500.6,3.99893]
[1730476429891,5.2050694,2501.3,2500.7,3.99887]
[1730476430090,3.99809,2501.2,2500.7,3.99879]
[1730476430362,3.99809,2501.2,2500.5,3.9991]
[1730476430363,3.99828,2501.1,2500.5,3.9991]
[1730476430562,0.0106394,2501.3,2500.5,3.0]
[1730476430796,0.0106394,2501.3,2501.0,3.99827]
[1730476430960,4.0086394,2501.3,2500.8,3.99872]
[1730476431162,0.0106394,2501.3,2500.9,3.99847]
[1730476431371,0.0106394,2501.3,2501.1,3.99822]
[1730476431573,0.51312022,2502.1,2501.1,3.99822]
[1730476431574,1.0825,2503.0,2501.2,0.07995499]
[1730476431907,5.07781,2503.0,2502.3,3.99621]
[1730476432108,1.0825,2503.0,2502.4,3.99608]
[1730476432279,1.0825,2503.0,2502.3,3.99621]
[1730476432280,1.0825,2503.0,2502.5,3.99597]
[1730476432475,1.0825,2503.0,2501.9,3.99685]
[1730476432784,1.0825,2503.0,2502.3,3.99624]
[1730476432785,3.99561,2502.8,2502.3,3.99624]
[1730476432992,3.99561,2502.8,2502.2,3.99646]
[1730476433168,3.99572,2502.7,2502.2,3.99646]
[1730476433502,3.99561,2502.8,2502.2,3.99647]
[1730476433713,5.07781,2503.0,2502.2,3.99647]
[1730476433898,1.0825,2503.0,2502.3,0.07992017]
[1730476434501,1.0825,2503.0,2501.5,3.99754]
[1730476434502,3.99588,2502.6,2502.1,3.99653]
[1730476434813,3.99561,2502.8,2502.1,3.99653]
[1730476434968,0.54127809,2502.9,2499.9,1.23083387]
[1730476434969,5.14937,2502.4,2501.9,3.99686]
[1730476435164,1.1532,2502.4,2502.0,0.07993516]
[1730476435367,3.99578,2502.7,2502.0,0.07993516]
[1730476435368,3.99578,2502.7,2502.1,3.99654]
[1730476435568,3.99578,2502.7,2502.0,0.07993516]
[1730476435569,0.399578,2502.7,2502.0,0.07993516]
[1730476435864,3.99593,2502.6,2501.9,3.99682]
[1730476436069,5.14875,2502.8,2501.9,3.99682]
[1730476436070,3.996,2502.5,2501.9,3.99682]
[1730476436264,1.1532,2502.8,2501.3,3.0]
[1730476436265,3.99578,2502.7,2501.8,0.07992879]
[1730476436526,3.99577,2502.7,2502.2,3.99637]
[1730476436807,1.1532,2502.8,2502.4,3.99611]
[1730476437009,1.1532,2502.8,2501.9,3.99681]
[1730476437172,5.14874,2502.8,2501.5,3.9976]
[1730476437378,3.99571,2502.7,2502.0,3.99679]
[1730476437568,1.0899,2502.5,2500.9,3.0]
[1730476437772,1.0899,2502.5,2501.4,3.99764]
[1730476437773,3.99653,2502.2,2501.4,3.99764]
[1730476437994,3.99639,2502.3,2501.8,3.99702]
[1730476438212,3.99673,2502.1,2501.7,0.07992816]
[1730476438578,3.99673,2502.1,2501.4,7.99535]
[1730476438881,3.99673,2502.1,2501.6,3.99743]
[1730476439097,3.99673,2502.1,2501.1,3.99822]
[1730476439098,1.0899,2502.5,2501.3,3.99792]
[1730476439315,3.99651,2502.2,2501.6,3.9973]
[1730476439643,3.99651,2502.2,2501.3,0.55]
[1730476439644,5.0859,2502.5,2502.0,3.99667]
[1730476439924,5.08598,2502.5,2501.8,3.99711]
[1730476440087,3.99649,2502.2,2501.5,3.99751]
[1730476440284,5.594538,2502.5,2501.1,3.99815]
[1730476440285,3.99728,2501.7,2501.1,3.99815]
[1730476440587,3.99728,2501.7,2500.8,3.9987]
[1730476440588,1.1008,2501.7,2500.8,3.9987]
[1730476440822,1.1008,2501.7,2500.9,4.07840213]
[1730476440823,3.99754,2501.6,2500.9,4.07840213]
[1730476441121,1.1008,2501.7,2501.1,3.99815]
[1730476441325,1.1008,2501.7,2501.3,3.99792]
[1730476441509,5.09811,2501.7,2501.2,3.99806]
[1730476441688,1.1008,2501.7,2501.3,3.9978]
[1730476441890,1.1008,2501.7,2501.1,3.99819]
[1730476441891,3.99744,2501.6,2501.1,3.99819]
[1730476442086,1.1008,2501.7,2501.3,3.99782]
[1730476442322,3.99703,2501.9,2501.4,4.07761605]
[1730476442485,1.1218,2502.0,2501.5,0.55]
[1730476442687,3.99721,2501.8,2501.3,3.9978]
[1730476442885,3.99769,2501.5,2500.9,3.99846]
[1730476443186,1.1218,2502.0,2501.7,3.99717]
[1730476443392,1.1412,2502.5,2501.8,3.99696]
[1730476443628,5.1372,2502.5,2502.0,3.99666]
[1730476443834,5.1372,2502.5,2501.6,3.9974]
[1730476443835,5.1372,2502.5,2502.1,4.07648372]
[1730476444085,1.1412,2502.5,2502.2,3.99646]
[1730476444358,1.1412,2503.0,2502.3,0.07992372]
[1730476444571,3.99544,2502.9,2502.4,3.99613]
[1730476444874,5.1365,2503.0,2502.5,4.07583191]
[1730476445022,1.1412,2503.0,2502.6,3.99576]
[1730476445228,1.1416,2503.7,2502.9,5.05080921]
[1730476445523,0.1232417,2503.8,2503.4,3.99448]
[1730476445865,0.1232417,2503.8,2503.7,4.54408]
[1730476446583,0.1232417,2503.8,2503.4,3.99449]
[1730476446730,0.1232417,2503.8,2503.5,3.99428]
[1730476447034,4.1172517,2503.8,2503.2,3.99476]
[1730476447236,0.1232417,2503.8,2503.4,0.55]
[1730476447462,0.1232417,2503.8,2503.7,3.99408]
[1730476447975,0.1232417,2503.8,2503.7,4.62394884]
[1730476448261,0.1232417,2503.8,2503.7,3.99408]
[1730476448421,0.1232417,2503.8,2503.6,3.99411]
[1730476448627,0.1232417,2503.8,2503.7,0.0798677]
[1730476448829,0.1232417,2503.8,2503.5,0.55]
[1730476449400,0.1232417,2503.8,2503.6,0.07987454]
[1730476449601,0.1232417,2503.8,2503.5,4.54438]
[1730476449602,0.1232417,2503.8,2503.7,3.99408]
[1730476449767,0.1232417,2503.8,2503.4,3.99456]
[1730476449973,0.1232417,2503.8,2503.7,3.99408]
[1730476450294,0.1232417,2503.8,2503.7,4.54408]
[1730476451299,0.1232417,2503.8,2503.7,9.67475209]
[1730476451664,3.99118,2505.6,2503.7,9.67475209]
[1730476451665,3.99124,2505.5,2504.5,3.99267]
[1730476451934,1.551724,2505.5,2504.7,0.55]
[1730476452114,5.14382,2505.5,2504.9,3.99208]
[1730476452433,3.99171,2505.2,2504.3,0.55]
[1730476452590,3.99222,2504.9,2504.3,4.54304]
[1730476452796,1.1526,2505.5,2504.5,0.55]
[1730476453028,3.992,2505.1,2504.6,4.07239011]
[1730476453543,3.99205,2505.0,2504.5,0.55]
[1730476453689,3.99233,2504.8,2504.4,0.55]
[1730476454040,5.14385,2505.5,2501.9,4.219]
[1730476454333,3.99277,2504.6,2504.1,0.55]
[1730476454637,3.99277,2504.6,2503.8,3.99389]
[1730476454638,3.99284,2504.5,2503.8,3.99384]
[1730476454933,3.99259,2504.7,2504.1,3.99339]
[1730476455133,3.99217,2504.9,2504.2,0.0798509]
[1730476455370,3.99217,2504.9,2503.5,3.99434]
[1730476455494,3.99371,2504.0,2503.4,3.99456]
[1730476455698,3.99353,2504.1,2503.6,3.99424]
[1730476455892,1.1477,2504.7,2503.0,3.9952]
[1730476456122,3.99291,2504.5,2503.9,3.99369]
[1730476456297,7.98544,2504.6,2504.0,4.07336792]
[1730476456493,4.1368,2505.3,2504.0,4.07336792]
[1730476456494,5.12844,2505.3,2504.3,3.99302]
[1730476456715,3.9917,2505.2,2504.7,3.9924]
[1730476456913,3.99122,2505.5,2504.8,4.07210784]
[1730476457337,3.99209,2505.0,2503.9,3.99376]
[1730476457499,3.99209,2505.0,2504.3,3.99304]
[1730476457699,3.99211,2505.0,2504.0,0.55]
[1730476457900,3.99189,2505.1,2504.4,3.99281]
[1730476458234,3.99185,2505.1,2504.5,3.99273]
[1730476458536,3.99185,2505.1,2503.9,0.55]
[1730476458537,3.99219,2504.9,2504.6,0.07984109]
[1730476458723,3.99258,2504.7,2504.2,4.54327]
[1730476458924,3.99228,2504.9,2504.2,4.54318]
[1730476459242,3.99074,2505.8,2505.0,3.99201]
[1730476459409,1.177,2505.9,2504.9,0.55]
[1730476459612,1.177,2505.9,2504.4,0.55]
[1730476459613,1.177,2505.9,2504.6,0.55]
[1730476459830,3.99122,2505.5,2505.0,3.99196]
[1730476459996,3.99122,2505.5,2505.1,0.62982519]
[1730476460393,3.99144,2505.4,2504.9,3.99214]
[1730476460738,3.99114,2505.6,2504.9,0.55]
[1730476460739,3.99184,2505.2,2504.9,0.55]
[1730476460896,3.99154,2505.3,2504.8,3.99228]
[1730476461103,3.99154,2505.3,2504.9,0.55]
[1730476461424,3.99154,2505.3,2504.8,0.55]
[1730476461635,3.99154,2505.3,2504.8,4.54222]
[1730476462010,3.99133,2505.5,2504.8,0.55]
[1730476462240,5.16767,2505.9,2505.3,0.55]
[1730476462441,3.99078,2505.8,2505.3,4.54144]
[1730476462740,1.177,2505.9,2505.3,0.55]
[1730476462958,3.99074,2505.8,2505.3,4.54145]
[1730476463098,3.99074,2505.8,2504.4,3.99296]
[1730476463099,3.99123,2505.5,2504.6,3.99257]
[1730476463424,3.99155,2505.3,2504.7,0.07983172]
[1730476463599,0.915842,2505.8,2504.7,0.07983172]
[1730476463600,3.99132,2505.5,2504.7,3.99236]
[1730476463804,5.16766,2505.9,2504.9,3.99205]
[1730476463805,5.16763,2505.9,2504.9,3.99205]
[1730476464000,3.9909,2505.7,2505.0,4.07169534]
[1730476464339,3.9909,2505.7,2503.9,5.05080921]
[1730476464635,3.99134,2505.5,2504.9,3.99209]
[1730476464839,3.9914,2505.4,2504.9,3.99209]
[1730476465039,0.798274,2505.4,2504.4,3.0]
[1730476465337,5.09467,2505.1,2504.5,4.07262766]
[1730476465535,3.99198,2505.1,2504.5,3.99279]
[1730476465844,3.99198,2505.1,2504.6,0.07983983]
[1730476466139,3.99153,2505.3,2504.8,3.99226]
[1730476466299,5.09393,2505.5,2505.0,3.99201]
[1730476466503,3.99123,2505.5,2505.0,3.99192]
[1730476466733,7.98256,2505.5,2504.9,4.54207]
[1730476466912,3.99123,2505.5,2505.0,3.99193]
[1730476467118,3.99123,2505.5,2505.1,0.55]
[1730476467342,3.99153,2505.4,2504.9,0.55]
[1730476467638,1.187,2505.2,2504.2,3.99327]
[1730476467838,3.99242,2504.8,2504.3,3.99311]
[1730476468049,3.99108,2505.6,2503.5,9.04080921]
[1730476468050,2.89408396,2505.4,2504.6,3.99257]
[1730476468249,3.99243,2504.8,2504.2,7.98639]
[1730476468448,1.187,2505.6,2503.8,3.99388]
[1730476468449,3.99177,2505.2,2504.6,3.99257]
[1730476468613,3.99201,2505.0,2504.3,3.99309]
[1730476468807,3.99267,2504.6,2504.0,3.9935]
[1730476469048,3.99267,2504.6,2504.0,3.99349]
[1730476469255,1.1334,2504.8,2503.6,3.99417]
[1730476469457,3.99376,2504.0,2503.4,3.99446]
[1730476469617,3.99376,2504.0,2503.2,3.99478]
[1730476469618,3.99394,2503.8,2503.3,3.99463]
[1730476469808,3.99338,2504.2,2503.4,0.07987722]
[1730476470157,3.99193,2505.1,2503.4,0.07987722]
[1730476470158,1.1334,2505.7,2504.7,3.99235]
[1730476470310,1.1334,2505.7,2503.4,0.07987722]
[1730476470311,3.99106,2505.6,2504.2,3.99328]
[1730476470518,1.80349752,2505.7,2504.0,3.99359]
[1730476470519,1.1334,2505.7,2505.1,3.99174]
[1730476470714,3.99114,2505.6,2505.1,3.99184]
[1730476470945,3.99108,2505.6,2505.1,3.99178]
[1730476471120,3.99123,2505.5,2504.9,7.98414]
[1730476471314,3.99123,2505.5,2504.9,3.99207]
[1730476471517,3.99142,2505.4,2505.0,0.55]
[1730476471740,5.12439,2505.7,2505.0,0.55]
[1730476472144,3.99172,2505.2,2504.1,3.99337]
[1730476472457,6.6875666,2505.7,2504.7,0.55]
[1730476472664,3.99203,2505.0,2504.7,0.55]
[1730476472954,3.99184,2505.2,2504.7,3.99246]
[1730476473157,3.9918,2505.2,2504.6,4.54251]
[1730476473313,3.99149,2505.4,2504.8,0.55]
[1730476473655,3.99149,2505.4,2504.9,0.55]
[1730476473656,3.99146,2505.4,2504.9,0.55]
[1730476473860,3.99146,2505.4,2504.9,4.54203]
[1730476474067,6.99116,2505.6,2504.9,0.62983281]
[1730476474369,1.1334,2505.7,2505.1,3.99185]
[1730476474527,1.1209,2506.1,2505.5,0.55]
[1730476474719,1.1209,2506.1,2505.6,3.99105]
[1730476474913,5.11116,2506.1,2505.6,3.99105]
[1730476475109,1.1209,2506.1,2505.5,4.54112]
[1730476475374,4.1132417,2506.3,2506.2,4.5401]
[1730476475375,0.1232417,2506.3,2506.2,4.5401]
[1730476475862,0.0732417,2506.3,2506.0,0.55]
[1730476476350,0.0732417,2506.3,2505.9,0.55]
[1730476476653,0.0732417,2506.3,2505.5,3.99108]
[1730476476854,0.0732417,2506.3,2505.6,0.6298067]
[1730476477166,3.99026,2506.1,2505.5,0.62981122]
[1730476477328,4.0632817,2506.3,2505.7,4.54088]
[1730476477660,0.0732417,2506.3,2505.8,4.0705238]
[1730476477868,4.0632117,2506.3,2505.9,0.55]
[1730476478076,0.0732417,2506.3,2505.5,0.55]
[1730476478282,3.99022,2506.2,2505.8,0.55]
[1730476478481,4.0633417,2506.3,2505.8,0.55]
[1730476478482,3.99026,2506.1,2505.8,0.55]
[1730476478775,3.99015,2506.2,2505.6,4.54102]
[1730476478976,0.0732417,2506.3,2505.9,0.55]
[1730476479129,0.0732417,2506.3,2506.1,0.55]
[1730476479529,0.0732417,2506.3,2506.0,3.99041]
[1730476479530,0.0732417,2506.3,2506.0,0.55]
[1730476479735,0.0732417,2506.3,2506.2,0.55]
[1730476479952,4.0632217,2506.3,2505.8,0.55]
[1730476480286,0.0232417,2506.3,2506.0,4.54039]
[1730476480579,0.0232417,2506.3,2506.2,0.55]
[1730476480735,0.0232417,2506.3,2506.2,4.5401]
[1730476481078,0.0232417,2506.3,2506.2,0.55]
[1730476481378,0.0232417,2506.3,2506.2,4.5401]
[1730476481585,0.0232417,2506.3,2506.2,0.55]
[1730476482081,0.0232417,2506.3,2505.8,3.99072]
[1730476482082,4.0132017,2506.3,2505.8,3.99072]
[1730476482492,3.99026,2506.1,2504.3,6.64731621]
[1730476482687,3.99026,2506.1,2504.9,3.99202]
[1730476482688,3.99115,2505.6,2504.9,3.99202]
[1730476482991,3.99114,2505.6,2505.0,4.07174674]
[1730476483273,3.99051,2506.0,2505.4,3.99126]
[1730476483476,3.99077,2505.8,2505.2,3.99159]
[1730476483648,3.99052,2506.0,2505.4,3.99123]
[1730476483845,3.99091,2505.7,2505.1,3.99173]
[1730476484051,3.9912,2505.6,2504.9,3.99202]
[1730476484368,3.99107,2505.6,2505.1,3.99174]
[1730476484535,3.99138,2505.4,2505.2,0.0798206]
[1730476484731,3.9911,2505.6,2505.0,0.07982379]
[1730476484935,3.9911,2505.6,2505.0,4.07173379]
[1730476485136,1.1124,2506.2,2505.3,3.99146]
[1730476485137,3.99053,2506.0,2505.3,3.99146]
[1730476485363,9.09284,2506.2,2505.5,3.99121]
[1730476485570,9.09284,2506.2,2505.6,4.07072649]
[1730476485571,5.10259,2506.2,2505.6,4.07072649]
[1730476485876,9.09282,2506.2,2505.6,3.99092]
[1730476486045,5.10259,2506.2,2505.7,4.54082]
[1730476486249,5.10259,2506.2,2505.7,0.55]
[1730476486458,3.99026,2506.1,2505.7,0.55]
[1730476486682,3.99026,2506.1,2505.0,3.99194]
[1730476486683,4.90186917,2506.1,2504.4,3.0]
[1730476486835,4.90186917,2506.1,2505.3,0.55]
[1730476486836,3.99084,2505.8,2505.3,0.55]
[1730476487038,3.99099,2505.7,2505.3,0.55]
[1730476487546,3.99084,2505.8,2505.4,0.07981954]
[1730476487755,3.99105,2505.7,2505.4,0.07981954]
[1730476488057,3.99084,2505.8,2505.1,0.55]
[1730476488058,3.99118,2505.6,2505.1,3.55]
[1730476488245,3.99118,2505.6,2505.1,0.55]
[1730476488246,3.99129,2505.5,2505.1,0.55]
[1730476488453,3.99118,2505.6,2505.2,0.07982496]
[1730476488454,7.98232,2505.6,2505.2,0.07982496]
[1730476488637,4.90190917,2506.1,2505.3,0.55]
[1730476488638,3.9909,2505.7,2505.3,0.55]
[1730476488975,3.99084,2505.8,2505.4,0.07982113]
[1730476489134,1.1124,2506.2,2505.4,0.07982113]
[1730476489334,1.1124,2506.2,2505.3,0.55]
[1730476489335,3.99076,2505.8,2505.3,4.54144]
[1730476489767,3.99045,2506.0,2504.9,3.99203]
[1730476489768,9.16320921,2506.2,2504.9,0.55]
[1730476489968,3.99124,2505.5,2505.1,0.55]
[1730476490181,7.98258,2505.5,2505.1,0.55]
[1730476490382,3.99124,2505.5,2505.0,0.55]
[1730476490737,3.99101,2505.7,2505.0,0.55]
[1730476490738,0.91864509,2506.1,2505.0,0.55]
[1730476490938,3.9913,2505.5,2505.0,0.55]
[1730476491440,1.1124,2506.2,2505.4,3.99135]
[1730476491441,3.99064,2505.9,2505.4,3.99135]
[1730476491672,3.99036,2506.1,2505.5,4.54114]
[1730476491874,3.99045,2506.0,2505.5,0.55]
[1730476492380,3.99146,2505.4,2504.5,3.8239444]
[1730476492536,3.99054,2506.0,2505.5,0.55]
[1730476492738,3.99061,2505.9,2505.5,0.55]
[1730476492967,3.99038,2506.1,2505.5,0.55]
[1730476493163,3.99038,2506.1,2505.6,4.07079158]
[1730476493164,3.94038,2506.1,2505.6,4.07079158]
[1730476493365,0.0232417,2506.3,2505.7,0.55]
[1730476493564,4.0132817,2506.3,2505.7,0.55]